[Event "*** SCC Grand Prix: Titled Tuesday Blitz"]
[Site "Chess.com"]
[Date "2020.10.06"]
[Round "8"]
[White "kot60"]
[Black "MusicCityMaster"]
[Result "1-0"]
[WhiteElo "2423"]
[BlackElo "2311"]
[TimeControl "180+1"]
[EndTime "11:35:11 PDT"]
[Termination "kot60 won by resignation"]

1. e4 {[%clk 0:03:00.9]} 1... c5 {[%clk 0:02:59]} 2. Nc3 {[%clk 0:02:59]} 2...
d6 {[%clk 0:02:58]} 3. Bc4 {[%clk 0:02:59]} 3... e6 {[%clk 0:02:57.4]} 4. d3
{[%clk 0:02:59.2]} 4... Nf6 {[%clk 0:02:56.8]} 5. Nge2 {[%clk 0:02:59.5]} 5...
Be7 {[%clk 0:02:56.7]} 6. O-O {[%clk 0:02:59.1]} 6... a6 {[%clk 0:02:56]} 7. a4
{[%clk 0:02:58.4]} 7... O-O {[%clk 0:02:55.3]} 8. h3 {[%clk 0:02:58.9]} 8... d5
{[%clk 0:02:55.6]} 9. exd5 {[%clk 0:02:58.7]} 9... exd5 {[%clk 0:02:56.5]} 10.
Bb3 {[%clk 0:02:58.9]} 10... Nc6 {[%clk 0:02:55.1]} 11. Bg5 {[%clk 0:02:58.6]}
11... Be6 {[%clk 0:02:54.5]} 12. Nf4 {[%clk 0:02:57.3]} 12... Nd4 {[%clk
0:02:54.1]} 13. Bxf6 {[%clk 0:02:56.7]} 13... Bxf6 {[%clk 0:02:48.9]} 14. Bxd5
{[%clk 0:02:56.6]} 14... Qd6 {[%clk 0:02:34.9]} 15. Nxe6 {[%clk 0:02:48.8]}
15... fxe6 {[%clk 0:02:32.4]} 16. Be4 {[%clk 0:02:48.5]} 16... g6 {[%clk
0:02:11.2]} 17. Ne2 {[%clk 0:02:42]} 17... Nf5 {[%clk 0:02:06.7]} 18. c3 {[%clk
0:02:38.9]} 18... Rad8 {[%clk 0:02:00.7]} 19. Qb3 {[%clk 0:02:36]} 19... Rf7
{[%clk 0:01:54.2]} 20. Rad1 {[%clk 0:02:26.1]} 20... Nh4 {[%clk 0:01:53.7]} 21.
f4 {[%clk 0:02:19.5]} 21... Rdf8 {[%clk 0:01:51.5]} 22. a5 {[%clk 0:02:12.1]}
22... Bd8 {[%clk 0:01:50.7]} 23. Qa4 {[%clk 0:01:58.4]} 23... g5 {[%clk
0:01:31.1]} 24. d4 {[%clk 0:01:26.7]} 24... gxf4 {[%clk 0:01:25.8]} 25. dxc5
{[%clk 0:01:25.5]} 25... Qxc5+ {[%clk 0:01:25.8]} 26. Qd4 {[%clk 0:01:24.7]}
26... Qg5 {[%clk 0:01:25.3]} 27. Kh1 {[%clk 0:01:11.9]} 27... f3 {[%clk
0:01:16.8]} 28. Qg1 {[%clk 0:00:29.5]} 28... fxe2 {[%clk 0:01:15.6]} 29. Rxf7
{[%clk 0:00:29.3]} 29... Rxf7 {[%clk 0:01:08.4]} 30. Re1 {[%clk 0:00:27.3]}
30... Qg3 {[%clk 0:00:55.9]} 31. Rxe2 {[%clk 0:00:24.3]} 31... Bc7 {[%clk
0:00:55.9]} 32. Re1 {[%clk 0:00:16.2]} 32... Rf2 {[%clk 0:00:52.8]} 33. Bxb7
{[%clk 0:00:09.1]} 33... Nf3 {[%clk 0:00:45.6]} 34. Bxf3 {[%clk 0:00:03.5]}
34... Rxf3 {[%clk 0:00:44.5]} 35. gxf3 {[%clk 0:00:01.6]} 35... Kf7 {[%clk
0:00:41.7]} 36. Qxg3 {[%clk 0:00:01.5]} 36... Bxg3 {[%clk 0:00:39.5]} 37. Re4
{[%clk 0:00:02.4]} 37... e5 {[%clk 0:00:38.4]} 38. Rc4 {[%clk 0:00:03.3]} 38...
Kf6 {[%clk 0:00:38.7]} 39. Rc6+ {[%clk 0:00:04.2]} 39... Kf5 {[%clk 0:00:39.1]}
40. Rxa6 {[%clk 0:00:04.8]} 1-0

[Event "*** SCC Grand Prix: Titled Tuesday Blitz"]
[Site "Chess.com"]
[Date "2020.10.06"]
[Round "8"]
[White "GiantThresher"]
[Black "SergeyKarjakin"]
[Result "1-0"]
[WhiteElo "2810"]
[BlackElo "2925"]
[TimeControl "180+1"]
[EndTime "11:35:15 PDT"]
[Termination "GiantThresher won by checkmate"]

1. e4 {[%clk 0:03:00.9]} 1... c5 {[%clk 0:02:58.1]} 2. Nf3 {[%clk 0:02:59.5]}
2... d6 {[%clk 0:02:58.7]} 3. Bb5+ {[%clk 0:02:59.4]} 3... Nd7 {[%clk
0:02:58.3]} 4. Ba4 {[%clk 0:02:59]} 4... Nf6 {[%clk 0:02:57.1]} 5. O-O {[%clk
0:02:58.7]} 5... a6 {[%clk 0:02:51.4]} 6. c4 {[%clk 0:02:58.4]} 6... e6 {[%clk
0:02:46.2]} 7. Nc3 {[%clk 0:02:56.2]} 7... Be7 {[%clk 0:02:46.6]} 8. d4 {[%clk
0:02:56.1]} 8... cxd4 {[%clk 0:02:47]} 9. Qxd4 {[%clk 0:02:56.8]} 9... O-O
{[%clk 0:02:47.7]} 10. Rd1 {[%clk 0:02:55.6]} 10... Qc7 {[%clk 0:02:43.2]} 11.
Bxd7 {[%clk 0:02:55.4]} 11... Bxd7 {[%clk 0:02:42.1]} 12. Bf4 {[%clk 0:02:36]}
12... Bc6 {[%clk 0:02:04.5]} 13. Bxd6 {[%clk 0:02:32.3]} 13... Bxd6 {[%clk
0:02:03.8]} 14. Qxd6 {[%clk 0:02:33.2]} 14... Qxd6 {[%clk 0:01:50.1]} 15. Rxd6
{[%clk 0:02:34.1]} 15... Bxe4 {[%clk 0:01:50.4]} 16. Ne5 {[%clk 0:02:34]} 16...
Rac8 {[%clk 0:01:38]} 17. Rad1 {[%clk 0:02:12.4]} 17... h6 {[%clk 0:01:33.5]}
18. f3 {[%clk 0:01:48]} 18... Bh7 {[%clk 0:01:31.5]} 19. b4 {[%clk 0:01:46]}
19... g5 {[%clk 0:01:25.7]} 20. c5 {[%clk 0:01:39.4]} 20... Rc7 {[%clk
0:01:21.4]} 21. Kf2 {[%clk 0:01:20.7]} 21... Kg7 {[%clk 0:01:20.9]} 22. R1d2
{[%clk 0:01:16.4]} 22... a5 {[%clk 0:00:54.1]} 23. Nb5 {[%clk 0:01:03.3]} 23...
Rcc8 {[%clk 0:00:53.6]} 24. a3 {[%clk 0:01:01.2]} 24... axb4 {[%clk 0:00:53.7]}
25. axb4 {[%clk 0:01:01.4]} 25... Nd5 {[%clk 0:00:53.1]} 26. Rd7 {[%clk
0:00:42.1]} 26... Nxb4 {[%clk 0:00:53.1]} 27. Nd6 {[%clk 0:00:39.4]} 27... Rxc5
{[%clk 0:00:37.6]} 28. Ndxf7 {[%clk 0:00:37.2]} 28... Ra8 {[%clk 0:00:17.4]} 29.
Nxg5+ {[%clk 0:00:16.9]} 29... Kf6 {[%clk 0:00:17.2]} 30. Nxh7+ {[%clk
0:00:17.2]} 30... Kxe5 {[%clk 0:00:17.4]} 31. Re2+ {[%clk 0:00:17.7]} 31... Kf5
{[%clk 0:00:17.2]} 32. g4+ {[%clk 0:00:14.8]} 32... Kf4 {[%clk 0:00:13.7]} 33.
Re4# {[%clk 0:00:14.4]} 1-0

[Event "*** SCC Grand Prix: Titled Tuesday Blitz"]
[Site "Chess.com"]
[Date "2020.10.06"]
[Round "8"]
[White "Trickov"]
[Black "gagtemp"]
[Result "1-0"]
[WhiteElo "2379"]
[BlackElo "1954"]
[TimeControl "180+1"]
[EndTime "11:35:16 PDT"]
[Termination "Trickov won on time"]

1. d4 {[%clk 0:02:51.7]} 1... e6 {[%clk 0:02:59]} 2. Nf3 {[%clk 0:02:51.8]} 2...
d5 {[%clk 0:02:58.9]} 3. g3 {[%clk 0:02:50.8]} 3... c5 {[%clk 0:02:59]} 4. Bg2
{[%clk 0:02:50.5]} 4... Nc6 {[%clk 0:02:58.8]} 5. O-O {[%clk 0:02:50.4]} 5...
Nf6 {[%clk 0:02:57.8]} 6. c4 {[%clk 0:02:50.8]} 6... Be7 {[%clk 0:02:53.9]} 7.
cxd5 {[%clk 0:02:48.8]} 7... exd5 {[%clk 0:02:54.8]} 8. Nc3 {[%clk 0:02:47.8]}
8... O-O {[%clk 0:02:54.9]} 9. Bf4 {[%clk 0:02:45.1]} 9... cxd4 {[%clk
0:02:49.3]} 10. Nxd4 {[%clk 0:02:44.3]} 10... Re8 {[%clk 0:02:44.2]} 11. Rc1
{[%clk 0:02:41.7]} 11... Bg4 {[%clk 0:02:40.1]} 12. h3 {[%clk 0:02:39.7]} 12...
Be6 {[%clk 0:02:38]} 13. Nxe6 {[%clk 0:02:19.5]} 13... fxe6 {[%clk 0:02:36.7]}
14. Qb3 {[%clk 0:02:19.3]} 14... Na5 {[%clk 0:02:19.9]} 15. Qa4 {[%clk
0:02:11.3]} 15... b6 {[%clk 0:02:16.9]} 16. Rfd1 {[%clk 0:02:08.4]} 16... Rc8
{[%clk 0:02:16.1]} 17. e4 {[%clk 0:02:03.6]} 17... Rc4 {[%clk 0:02:14.1]} 18.
Qb5 {[%clk 0:01:57]} 18... Rc5 {[%clk 0:01:59.6]} 19. Qa6 {[%clk 0:01:50.1]}
19... Nc4 {[%clk 0:01:36.7]} 20. b3 {[%clk 0:01:23.3]} 20... Ra5 {[%clk
0:01:31]} 21. Qb7 {[%clk 0:01:20.8]} 21... Ba3 {[%clk 0:01:03.4]} 22. bxc4
{[%clk 0:01:11.4]} 22... Bxc1 {[%clk 0:00:56]} 23. Bxc1 {[%clk 0:00:58.6]} 23...
d4 {[%clk 0:00:44.4]} 24. Nb5 {[%clk 0:00:45.6]} 24... Re7 {[%clk 0:00:41.4]}
25. Qc6 {[%clk 0:00:41.3]} 25... d3 {[%clk 0:00:34.3]} 26. e5 {[%clk 0:00:36.7]}
26... Ne8 {[%clk 0:00:28.2]} 27. Bg5 {[%clk 0:00:34.8]} 27... Qd7 {[%clk
0:00:24.6]} 28. Bxe7 {[%clk 0:00:32.2]} 28... Qxe7 {[%clk 0:00:21.6]} 29. Rxd3
{[%clk 0:00:31.2]} 29... Rxa2 {[%clk 0:00:20.4]} 30. Rd7 {[%clk 0:00:28]} 30...
Ra1+ {[%clk 0:00:19.3]} 31. Kh2 {[%clk 0:00:27.3]} 31... Qf8 {[%clk 0:00:16.9]}
32. Qxe6+ {[%clk 0:00:24.9]} 32... Kh8 {[%clk 0:00:16.3]} 33. Rd8 {[%clk
0:00:25.1]} 1-0

[Event "*** SCC Grand Prix: Titled Tuesday Blitz"]
[Site "Chess.com"]
[Date "2020.10.06"]
[Round "8"]
[White "Rogarcia1"]
[Black "SamuelGhimpu2003"]
[Result "0-1"]
[WhiteElo "2201"]
[BlackElo "2523"]
[TimeControl "180+1"]
[EndTime "11:35:20 PDT"]
[Termination "SamuelGhimpu2003 won by resignation"]

1. e4 {[%clk 0:03:00.9]} 1... e6 {[%clk 0:02:59.6]} 2. d4 {[%clk 0:03:00.4]}
2... d5 {[%clk 0:03:00.5]} 3. e5 {[%clk 0:03:00.5]} 3... c5 {[%clk 0:03:00.6]}
4. c3 {[%clk 0:03:00.9]} 4... Qb6 {[%clk 0:03:00]} 5. Nf3 {[%clk 0:03:00.8]}
5... Bd7 {[%clk 0:03:00.1]} 6. Be2 {[%clk 0:03:00.7]} 6... Nc6 {[%clk
0:02:58.1]} 7. O-O {[%clk 0:03:00.1]} 7... cxd4 {[%clk 0:02:55.9]} 8. cxd4
{[%clk 0:02:59.9]} 8... Nh6 {[%clk 0:02:55.4]} 9. Bxh6 {[%clk 0:02:58.1]} 9...
Qxb2 {[%clk 0:02:47.8]} 10. Be3 {[%clk 0:01:53.4]} 10... Qxa1 {[%clk 0:02:47.2]}
11. Qb3 {[%clk 0:01:36.7]} 11... Na5 {[%clk 0:02:40]} 12. Qc2 {[%clk 0:01:29.2]}
12... Rc8 {[%clk 0:02:39.5]} 13. Qd2 {[%clk 0:01:28.6]} 13... Nc4 {[%clk
0:02:36.7]} 14. Bxc4 {[%clk 0:01:26.7]} 14... Rxc4 {[%clk 0:02:37.6]} 15. Qa5
{[%clk 0:01:22.2]} 15... Qb2 {[%clk 0:01:31.9]} 16. Qxa7 {[%clk 0:01:20.1]}
16... Be7 {[%clk 0:01:31.9]} 17. Nbd2 {[%clk 0:01:18.9]} 17... Rc8 {[%clk
0:01:23.6]} 18. Rb1 {[%clk 0:01:13.5]} 18... Rc1+ {[%clk 0:01:23.1]} 19. Rxc1
{[%clk 0:01:12]} 19... Qxc1+ {[%clk 0:01:24]} 20. Nf1 {[%clk 0:01:11]} 20... Qc8
{[%clk 0:01:21.2]} 21. h3 {[%clk 0:00:58.7]} 21... O-O {[%clk 0:01:17]} 22. N1d2
{[%clk 0:00:58.8]} 22... Qa8 {[%clk 0:01:12.6]} 23. Qb6 {[%clk 0:00:57.3]} 23...
Bc6 {[%clk 0:01:02.1]} 24. Qb1 {[%clk 0:00:54.9]} 24... Qa3 {[%clk 0:00:58]} 25.
Bg5 {[%clk 0:00:47]} 25... Ra8 {[%clk 0:00:52.8]} 26. Bxe7 {[%clk 0:00:44.6]}
26... Qxe7 {[%clk 0:00:53.7]} 27. Nb3 {[%clk 0:00:44.9]} 27... b6 {[%clk
0:00:46.6]} 28. Qc2 {[%clk 0:00:43.6]} 28... Bb5 {[%clk 0:00:44.8]} 29. h4
{[%clk 0:00:40]} 29... h6 {[%clk 0:00:44.3]} 30. Nc1 {[%clk 0:00:28.8]} 30...
Bc4 {[%clk 0:00:41.5]} 31. Nd2 {[%clk 0:00:21.6]} 31... Qb4 {[%clk 0:00:20.8]}
32. Ncb3 {[%clk 0:00:17.9]} 32... b5 {[%clk 0:00:19]} 33. Nc5 {[%clk 0:00:17.2]}
33... Rxa2 {[%clk 0:00:16.4]} 34. Qb1 {[%clk 0:00:12.4]} 34... Qxd2 {[%clk
0:00:13.9]} 0-1

[Event "*** SCC Grand Prix: Titled Tuesday Blitz"]
[Site "Chess.com"]
[Date "2020.10.06"]
[Round "8"]
[White "nitpicker"]
[Black "dosto07"]
[Result "0-1"]
[WhiteElo "2234"]
[BlackElo "2342"]
[TimeControl "180+1"]
[EndTime "11:35:20 PDT"]
[Termination "dosto07 won on time"]

1. d4 {[%clk 0:01:12.3]} 1... d5 {[%clk 0:02:58.5]} 2. c4 {[%clk 0:01:11.1]}
2... dxc4 {[%clk 0:02:59]} 3. e4 {[%clk 0:01:10.1]} 3... e5 {[%clk 0:02:56.7]}
4. Nf3 {[%clk 0:01:07.2]} 4... exd4 {[%clk 0:02:57.1]} 5. Bxc4 {[%clk
0:01:05.4]} 5... Nc6 {[%clk 0:02:57.3]} 6. O-O {[%clk 0:01:04.4]} 6... Be6
{[%clk 0:02:57.7]} 7. Bxe6 {[%clk 0:00:53.2]} 7... fxe6 {[%clk 0:02:57]} 8. Bf4
{[%clk 0:00:49.3]} 8... Qd7 {[%clk 0:02:52.4]} 9. Nbd2 {[%clk 0:00:47.4]} 9...
O-O-O {[%clk 0:02:45.2]} 10. Rc1 {[%clk 0:00:45.8]} 10... Nge7 {[%clk
0:02:44.4]} 11. Qa4 {[%clk 0:00:45.2]} 11... Ng6 {[%clk 0:02:34.1]} 12. Bg5
{[%clk 0:00:43.6]} 12... Be7 {[%clk 0:02:26.7]} 13. Bxe7 {[%clk 0:00:36.3]}
13... Ngxe7 {[%clk 0:02:18.9]} 14. b4 {[%clk 0:00:36.3]} 14... Kb8 {[%clk
0:02:13.6]} 15. Nc4 {[%clk 0:00:34.2]} 15... Ng6 {[%clk 0:01:59.1]} 16. b5
{[%clk 0:00:33.2]} 16... Nce7 {[%clk 0:01:53.6]} 17. Na5 {[%clk 0:00:32.9]}
17... Nf4 {[%clk 0:01:03.4]} 18. Nc6+ {[%clk 0:00:29.9]} 18... bxc6 {[%clk
0:00:56.6]} 19. bxc6 {[%clk 0:00:29.9]} 19... Nxc6 {[%clk 0:00:39.4]} 20. Rxc6
{[%clk 0:00:27.5]} 20... Ne2+ {[%clk 0:00:36.8]} 21. Kh1 {[%clk 0:00:26.7]}
21... Nc3 {[%clk 0:00:36.1]} 22. Qa6 {[%clk 0:00:19.7]} 22... Qc8 {[%clk
0:00:29.1]} 23. Qc4 {[%clk 0:00:18.5]} 23... Rd6 {[%clk 0:00:18.2]} 24. Nxd4
{[%clk 0:00:16.1]} 24... Nxe4 {[%clk 0:00:13]} 25. Nb5 {[%clk 0:00:12.7]} 25...
Rxc6 {[%clk 0:00:10.5]} 26. Qxc6 {[%clk 0:00:12.7]} 26... Qb7 {[%clk 0:00:06.9]}
27. Qc4 {[%clk 0:00:10]} 27... Rd8 {[%clk 0:00:04.9]} 28. Rb1 {[%clk 0:00:04.5]}
28... Nd2 {[%clk 0:00:04.5]} 0-1

[Event "*** SCC Grand Prix: Titled Tuesday Blitz"]
[Site "Chess.com"]
[Date "2020.10.06"]
[Round "8"]
[White "BigAl"]
[Black "K_A_S_T_O_R"]
[Result "1-0"]
[WhiteElo "2523"]
[BlackElo "2715"]
[TimeControl "180+1"]
[EndTime "11:35:21 PDT"]
[Termination "BigAl won by resignation"]

1. e4 {[%clk 0:03:00.9]} 1... c5 {[%clk 0:03:00]} 2. Nc3 {[%clk 0:03:00.8]} 2...
d6 {[%clk 0:02:59.8]} 3. f4 {[%clk 0:03:00.5]} 3... g6 {[%clk 0:02:59.6]} 4. Nf3
{[%clk 0:03:01.4]} 4... Bg7 {[%clk 0:03:00]} 5. Bb5+ {[%clk 0:03:02]} 5... Bd7
{[%clk 0:03:00.3]} 6. a4 {[%clk 0:03:02.6]} 6... e6 {[%clk 0:02:56.3]} 7. O-O
{[%clk 0:02:55.3]} 7... Ne7 {[%clk 0:02:56.1]} 8. d4 {[%clk 0:02:49.4]} 8...
cxd4 {[%clk 0:02:54.3]} 9. Nxd4 {[%clk 0:02:49.6]} 9... Nbc6 {[%clk 0:02:38]}
10. Nf3 {[%clk 0:02:49.2]} 10... Qc7 {[%clk 0:02:35.5]} 11. Bd3 {[%clk
0:02:34.3]} 11... a6 {[%clk 0:02:34.5]} 12. Be3 {[%clk 0:02:32]} 12... O-O
{[%clk 0:02:29.7]} 13. Kh1 {[%clk 0:02:32.3]} 13... Nb4 {[%clk 0:02:13.6]} 14.
a5 {[%clk 0:02:26.3]} 14... Rac8 {[%clk 0:02:05.4]} 15. Bb6 {[%clk 0:02:16.4]}
15... Qb8 {[%clk 0:02:05.6]} 16. Qe1 {[%clk 0:02:16.2]} 16... Nxd3 {[%clk
0:01:59.4]} 17. cxd3 {[%clk 0:02:15.9]} 17... e5 {[%clk 0:01:55]} 18. Qh4 {[%clk
0:02:03.1]} 18... f6 {[%clk 0:01:38.2]} 19. Rf2 {[%clk 0:01:55.3]} 19... Rce8
{[%clk 0:01:33.7]} 20. Raf1 {[%clk 0:01:54.1]} 20... Be6 {[%clk 0:01:33.8]} 21.
d4 {[%clk 0:01:44.8]} 21... Bc4 {[%clk 0:01:31.9]} 22. Rd1 {[%clk 0:01:42.5]}
22... Nc8 {[%clk 0:01:29.6]} 23. fxe5 {[%clk 0:01:31]} 23... Nxb6 {[%clk
0:01:26.9]} 24. axb6 {[%clk 0:01:27.3]} 24... dxe5 {[%clk 0:01:15.7]} 25. dxe5
{[%clk 0:01:27.5]} 25... fxe5 {[%clk 0:01:15.2]} 26. Rd7 {[%clk 0:01:27.5]}
26... h6 {[%clk 0:01:07.1]} 27. Qg3 {[%clk 0:01:21.3]} 27... Rf6 {[%clk
0:01:06.3]} 28. Rfd2 {[%clk 0:01:13.3]} 28... Rxb6 {[%clk 0:01:03.6]} 29. Nh4
{[%clk 0:00:58.6]} 29... Bf7 {[%clk 0:00:44.1]} 30. Nd5 {[%clk 0:00:46.3]} 30...
Rc6 {[%clk 0:00:38.9]} 31. h3 {[%clk 0:00:44]} 31... Bf8 {[%clk 0:00:35.1]} 32.
Rf2 {[%clk 0:00:39.5]} 32... Bxd5 {[%clk 0:00:24.9]} 33. Nxg6 {[%clk 0:00:29.6]}
33... Rc1+ {[%clk 0:00:15.4]} 34. Kh2 {[%clk 0:00:29.7]} 34... Bg7 {[%clk
0:00:10.5]} 35. Nh4 {[%clk 0:00:17.8]} 1-0

[Event "*** SCC Grand Prix: Titled Tuesday Blitz"]
[Site "Chess.com"]
[Date "2020.10.06"]
[Round "8"]
[White "Beca95"]
[Black "Sibelephant"]
[Result "0-1"]
[WhiteElo "2906"]
[BlackElo "3100"]
[TimeControl "180+1"]
[EndTime "11:35:23 PDT"]
[Termination "Sibelephant won on time"]

1. d4 {[%clk 0:03:00.9]} 1... d5 {[%clk 0:02:59.8]} 2. c4 {[%clk 0:03:00.9]}
2... c6 {[%clk 0:03:00.3]} 3. Nc3 {[%clk 0:03:01.2]} 3... Nf6 {[%clk 0:03:00.4]}
4. Nf3 {[%clk 0:03:01.6]} 4... e6 {[%clk 0:03:00.3]} 5. Qd3 {[%clk 0:03:00.1]}
5... Nbd7 {[%clk 0:02:56.8]} 6. Bf4 {[%clk 0:02:55.8]} 6... Be7 {[%clk
0:02:51.5]} 7. g4 {[%clk 0:02:55.4]} 7... h6 {[%clk 0:02:33.1]} 8. Rg1 {[%clk
0:02:54.7]} 8... Qa5 {[%clk 0:02:11.5]} 9. Bd2 {[%clk 0:02:53.1]} 9... Qa6
{[%clk 0:01:57.6]} 10. g5 {[%clk 0:02:46.1]} 10... dxc4 {[%clk 0:01:47.7]} 11.
Qc2 {[%clk 0:02:38.7]} 11... hxg5 {[%clk 0:01:47.7]} 12. Rxg5 {[%clk 0:02:38.5]}
12... g6 {[%clk 0:01:45.5]} 13. e4 {[%clk 0:02:28.8]} 13... b5 {[%clk
0:01:44.8]} 14. a4 {[%clk 0:02:12.4]} 14... Bb7 {[%clk 0:01:33.1]} 15. d5 {[%clk
0:01:15.7]} 15... cxd5 {[%clk 0:01:21.5]} 16. Nxb5 {[%clk 0:01:14.2]} 16... Rc8
{[%clk 0:01:19.4]} 17. exd5 {[%clk 0:01:08.2]} 17... Bxd5 {[%clk 0:01:19.5]} 18.
Nfd4 {[%clk 0:01:01.2]} 18... Ne4 {[%clk 0:01:13]} 19. Rg1 {[%clk 0:00:56.3]}
19... Rxh2 {[%clk 0:01:01.7]} 20. Be3 {[%clk 0:00:54.2]} 20... Ne5 {[%clk
0:00:44.7]} 21. O-O-O {[%clk 0:00:26.4]} 21... Kf8 {[%clk 0:00:19.5]} 22. Kb1
{[%clk 0:00:25.5]} 22... Nc5 {[%clk 0:00:17.9]} 23. Nc3 {[%clk 0:00:24.1]} 23...
Ned3 {[%clk 0:00:15.6]} 24. Nxd5 {[%clk 0:00:13.3]} 24... exd5 {[%clk
0:00:15.4]} 25. Bxd3 {[%clk 0:00:13.7]} 25... Nxd3 {[%clk 0:00:13.7]} 26. Nb5
{[%clk 0:00:11.1]} 26... Bf6 {[%clk 0:00:12]} 27. Rxd3 {[%clk 0:00:05.7]} 27...
cxd3 {[%clk 0:00:11.6]} 28. Qxd3 {[%clk 0:00:06.2]} 28... Qe6 {[%clk 0:00:10.6]}
29. Bf4 {[%clk 0:00:04.7]} 29... Rxf2 {[%clk 0:00:09.4]} 0-1

[Event "*** SCC Grand Prix: Titled Tuesday Blitz"]
[Site "Chess.com"]
[Date "2020.10.06"]
[Round "8"]
[White "PhileKhoob"]
[Black "Savagelittlemole"]
[Result "0-1"]
[WhiteElo "2474"]
[BlackElo "2597"]
[TimeControl "180+1"]
[EndTime "11:35:25 PDT"]
[Termination "Savagelittlemole won by resignation"]

1. Nf3 {[%clk 0:03:00.9]} 1... Nf6 {[%clk 0:02:58.8]} 2. b3 {[%clk 0:03:00]}
2... d6 {[%clk 0:02:58]} 3. Bb2 {[%clk 0:03:00.9]} 3... e5 {[%clk 0:02:57.2]} 4.
d3 {[%clk 0:02:57.9]} 4... Be7 {[%clk 0:02:46.9]} 5. c4 {[%clk 0:02:57.7]} 5...
O-O {[%clk 0:02:47.2]} 6. e3 {[%clk 0:02:58.2]} 6... Nc6 {[%clk 0:02:46.2]} 7.
Be2 {[%clk 0:02:58.7]} 7... Be6 {[%clk 0:02:45.4]} 8. O-O {[%clk 0:02:59.1]}
8... Qd7 {[%clk 0:02:45]} 9. Nc3 {[%clk 0:02:59.4]} 9... a6 {[%clk 0:02:39.7]}
10. d4 {[%clk 0:02:59.8]} 10... e4 {[%clk 0:02:36.7]} 11. Nd2 {[%clk 0:02:58.8]}
11... d5 {[%clk 0:02:36.8]} 12. cxd5 {[%clk 0:02:59.2]} 12... Bxd5 {[%clk
0:02:33]} 13. Nxd5 {[%clk 0:02:56.6]} 13... Qxd5 {[%clk 0:02:31.7]} 14. Rc1
{[%clk 0:02:57]} 14... Rac8 {[%clk 0:02:17.5]} 15. a3 {[%clk 0:02:47.8]} 15...
Rfd8 {[%clk 0:02:12.4]} 16. Qc2 {[%clk 0:02:47.5]} 16... Bd6 {[%clk 0:02:03.4]}
17. h3 {[%clk 0:02:17.7]} 17... h5 {[%clk 0:01:55.1]} 18. Bc4 {[%clk 0:02:03.4]}
18... Qf5 {[%clk 0:01:52.7]} 19. f3 {[%clk 0:02:03.4]} 19... Qg5 {[%clk
0:01:41.5]} 20. f4 {[%clk 0:02:02.7]} 20... Qg6 {[%clk 0:01:37.8]} 21. Bxa6
{[%clk 0:01:44.9]} 21... bxa6 {[%clk 0:01:29.4]} 22. Qxc6 {[%clk 0:01:43.5]}
22... Qg3 {[%clk 0:01:23.4]} 23. Rfe1 {[%clk 0:01:31.1]} 23... Rb8 {[%clk
0:01:13.5]} 24. b4 {[%clk 0:01:16.2]} 24... Rb5 {[%clk 0:01:09.4]} 25. Nxe4
{[%clk 0:01:12.2]} 25... Nxe4 {[%clk 0:01:07]} 26. Qxe4 {[%clk 0:01:13.1]} 26...
a5 {[%clk 0:00:57.8]} 27. Qf3 {[%clk 0:00:35.1]} 27... Qh4 {[%clk 0:00:54.7]}
28. Qf2 {[%clk 0:00:26.7]} 28... Qf6 {[%clk 0:00:46]} 29. bxa5 {[%clk
0:00:21.4]} 29... Rxa5 {[%clk 0:00:43.3]} 30. Rc3 {[%clk 0:00:16.2]} 30... Rb8
{[%clk 0:00:41.5]} 31. Rec1 {[%clk 0:00:16.2]} 31... Rab5 {[%clk 0:00:41.3]} 32.
R1c2 {[%clk 0:00:15.6]} 32... Qg6 {[%clk 0:00:36.9]} 33. f5 {[%clk 0:00:13.5]}
33... Rxf5 {[%clk 0:00:34.8]} 34. Qe2 {[%clk 0:00:13.3]} 34... Qg3 {[%clk
0:00:31.3]} 35. Qf2 {[%clk 0:00:05.9]} 35... Rxf2 {[%clk 0:00:26.9]} 36. Rxf2
{[%clk 0:00:06.8]} 36... Qh2+ {[%clk 0:00:23.5]} 0-1

[Event "*** SCC Grand Prix: Titled Tuesday Blitz"]
[Site "Chess.com"]
[Date "2020.10.06"]
[Round "8"]
[White "GMJustin"]
[Black "brunomorado"]
[Result "0-1"]
[WhiteElo "2271"]
[BlackElo "2444"]
[TimeControl "180+1"]
[EndTime "11:35:26 PDT"]
[Termination "brunomorado won on time"]

1. d4 {[%clk 0:02:45]} 1... d5 {[%clk 0:02:54.7]} 2. c4 {[%clk 0:02:44.3]} 2...
c6 {[%clk 0:02:55]} 3. Nc3 {[%clk 0:02:32]} 3... Nf6 {[%clk 0:02:55.1]} 4. Nf3
{[%clk 0:02:28.7]} 4... e6 {[%clk 0:02:55.3]} 5. e3 {[%clk 0:02:14]} 5... Nbd7
{[%clk 0:02:55]} 6. Nd2 {[%clk 0:02:13.7]} 6... Bd6 {[%clk 0:02:50]} 7. g3
{[%clk 0:02:04.6]} 7... O-O {[%clk 0:02:43.5]} 8. Bg2 {[%clk 0:02:03.4]} 8... b6
{[%clk 0:02:38.4]} 9. O-O {[%clk 0:01:58.3]} 9... Ba6 {[%clk 0:02:37.3]} 10. b3
{[%clk 0:01:55.2]} 10... Rc8 {[%clk 0:02:34.5]} 11. Re1 {[%clk 0:01:25.9]} 11...
Bb4 {[%clk 0:02:03.1]} 12. Bb2 {[%clk 0:01:14.3]} 12... c5 {[%clk 0:02:01.6]}
13. a3 {[%clk 0:00:44.5]} 13... Bxc3 {[%clk 0:01:54.4]} 14. Bxc3 {[%clk
0:00:45.4]} 14... cxd4 {[%clk 0:01:51.5]} 15. Bxd4 {[%clk 0:00:43.7]} 15... dxc4
{[%clk 0:01:47.9]} 16. Nxc4 {[%clk 0:00:35]} 16... Bxc4 {[%clk 0:01:48]} 17.
bxc4 {[%clk 0:00:34.6]} 17... Rxc4 {[%clk 0:01:48.9]} 18. a4 {[%clk 0:00:29.4]}
18... e5 {[%clk 0:01:25.3]} 19. Bb2 {[%clk 0:00:28]} 19... Qc7 {[%clk
0:01:22.3]} 20. Qb3 {[%clk 0:00:26.3]} 20... Rc8 {[%clk 0:01:14.7]} 21. Red1
{[%clk 0:00:17.7]} 21... Rc5 {[%clk 0:00:48]} 22. Bh3 {[%clk 0:00:14.3]} 22...
Re8 {[%clk 0:00:41.8]} 23. a5 {[%clk 0:00:12.1]} 23... e4 {[%clk 0:00:37.5]} 24.
axb6 {[%clk 0:00:10.7]} 24... axb6 {[%clk 0:00:31]} 25. Bd4 {[%clk 0:00:10.6]}
25... Rh5 {[%clk 0:00:27.2]} 26. Bg2 {[%clk 0:00:06.4]} 26... b5 {[%clk
0:00:26.4]} 27. Ra6 {[%clk 0:00:04.4]} 27... Nc5 {[%clk 0:00:18.4]} 28. Bxc5
{[%clk 0:00:01.5]} 28... Qxc5 {[%clk 0:00:19.3]} 29. Rxf6 {[%clk 0:00:01.6]}
29... gxf6 {[%clk 0:00:19.2]} 30. Rd4 {[%clk 0:00:01.4]} 30... Qc1+ {[%clk
0:00:18.5]} 0-1